Cogmind - Beta 16 @@@ ROGUE MODE // 2025.12.26 @ 20:57:52 Player: King Assripper Result: Self-destructed Performance ------------- Evolutions (1) 500 Regions Visited (2) 400 Robots Destroyed (13) 65 Value Destroyed (289) 289 Prototype IDs (0) 0 Alien Tech Used (0) 0 Bonus (0) 0 TOTAL SCORE: 1254 Bonus ------- None Cogmind --------- Core Integrity 168/400 Matter 244/450 Energy 125/125 System Corruption 3% Temperature Cool (0) Movement Flying (360) Ox4 Location -9/Materials Parts ------- > --- POWER (1) -------- Light Ion Engine > --- PROPULSION (2) --- Flight Unit > --- UTILITY (4) ------ Heat Sink Small Storage Unit Large Matter Pod Light Armor Plating > --- WEAPON (2) ------- Shotgun > --- INVENTORY (8) ---- High-capacity Battery (250) Tractor Beam Peak State ------------ > --- POWER ------------ Ion Engine > --- PROPULSION ------- Aluminum Leg Aluminum Leg > --- UTILITY ---------- Small Storage Unit High-capacity Battery Light Armor Plating Light Armor Plating > --- WEAPON ----------- Beam Cannon Assault Cannon > --- INVENTORY -------- Light Ion Engine Flight Unit Heat Sink Actuator Array Light Armor Plating Tractor Beam Shotgun [Rating: 12] Favorites ----------- Power Ion Engine Engine Ion Engine Propulsion Aluminum Leg Leg Aluminum Leg Flight Unit Flight Unit Utility Small Storage Unit Device Heat Sink Storage Small Storage Unit Protection Light Armor Plating Weapon Light Assault Rifle Energy Cannon Beam Cannon Ballistic Gun Light Assault Rifle Ballistic Cannon Assault Cannon Build | -11 -10 -9 ------- Run | Yrd Mat Mat Slots Evolved 2 | . . 2 Power . | . . . Propulsion . | . . . Utility 2 | . . 2 Weapon . | . . . Parts Attached 21 | 5 7 9 Power 3 | 1 2 . Engine 3 | 1 2 . Core . | . . . Reactor . | . . . Propulsion 5 | 2 2 1 Treads . | . . . Leg 4 | 2 2 . Wheel . | . . . Hover . | . . . Flight 1 | . . 1 Utility 8 | 1 2 5 Device 1 | . . 1 Storage 3 | 1 . 2 Processor . | . . . Hackware . | . . . Protection 4 | . 2 2 Artifact . | . . . Weapon 5 | 1 1 3 Energy Gun . | . . . Energy Cannon 2 | . 1 1 Ballistic Gun 2 | 1 . 1 Ballistic Cannon 1 | . . 1 Launcher . | . . . Special Weapon . | . . . Impact Weapon . | . . . Slashing Weapon . | . . . Piercing Weapon . | . . . Special Melee Weapon . | . . . Unidentified Prototypes . | . . . Parts Lost 9 | . 2 7 Power 2 | . 1 1 Propulsion 2 | . . 2 Utility 3 | . 1 2 Weapon 2 | . . 2 Highest Loss Streak 3 | . 2 3 To Critical Strikes . | . . . Average Backups 3 | . 2 5 Power . | . . . Propulsion . | . . . Utility 2 | . 1 3 Weapon . | . . . Tool/Special . | . . . Unused Backups 2 | . . 2 Power . | . . . Propulsion . | . . . Utility 2 | . . 2 Weapon . | . . . Tool/Special . | . . . Average Slot Usage (%) 82 | . 81 85 Engine 12 | . 13 10 Leg 23 | . 28 14 Storage 16 | . 14 21 Protection 10 | . 8 15 Energy Cannon 4 | . 2 8 Ballistic Gun 10 | . 14 5 Ballistic Cannon 2 | . . 5 Peak Build Rating 12 | 5 7 12 Average Rating 6 | 3 5 9 On Entrance 4 | . 5 7 Avg Prop Armor Cover (%) . | . . . Naked Turns . | . . . Heaviest Build 28 | 11 17 28 Greatest Support 20 | 20 20 20 Greatest Overweight (x) 5 | 3 . 5 Average Overweight (x) . | . . 1 Largest Inventory Capacity 8 | 8 8 8 Average Capacity 7 | 7 8 8 Most Carried 8 | . 8 8 Average Carried 3 | . 2 5 Final Capacity 8 | 8 8 8 Final Carried 6 | . 6 2 Class Distribution -------------------- 93% | Mutant 6% | Scavenger-Mutant Dominant Class ---------------- Mutant | -10/Materials Mutant | -9/Materials Resources | -11 -10 -9 ----------- Run | Yrd Mat Mat Matter Collected 406 | 250 84 72 Remotely . | . . . Salvage Created 362 | . 192 170 Parts 25 | . 19 6 Haulers Intercepted . | . . . Recyclers Shooed . | . . . Parts Field Recycled . | . . . Retrieved Matter . | . . . Parts Self-Destructed . | . . . Prevented . | . . . Parts Restored . | . . . Kills | -11 -10 -9 ------- Run | Yrd Mat Mat Combat Hostiles Destroyed 12 | . 8 4 Guns 11 | . 7 4 Cannons 1 | . 1 . Classes Destroyed 4 | . 3 1 Worker 1 | . 1 . Swarmer 6 | . 6 . Grunt 5 | . 2 3 Sentry 1 | . . 1 Best Kill Streak 3 | . 3 2 Combat Bots Only 3 | . 3 2 Max Kills in Single Turn 1 | . 1 1 Gunslinging . | . . . Exploded . | . . . Melee . | . . . Uniques/NPCs Destroyed . | . . . Combat | -11 -10 -9 -------- Run | Yrd Mat Mat Hostile Shots Fired 189 | . 86 103 Missed 51 | . 33 18 Hits 138 | . 53 85 Projectile 138 | . 53 85 Critical Strikes 1 | . . 1 Damage Taken 1425 | . 445 980 Core 323 | . 91 232 Absorbed by Shields . | . . . Core Remaining (%) 81 | 100 63 . Volleys Fired 58 | . 43 15 Largest 2 | . 2 2 Hottest 97 | . 80 97 Shots Fired 72 | . 48 24 Gun 55 | . 43 12 Cannon 17 | . 5 12 Launcher . | . . . Special . | . . . Kinetic 56 | . 43 13 Thermal 16 | . 5 11 Explosive . | . . . Electromagnetic . | . . . Robot Hit Streak 9 | . 5 9 Robot Miss Streak 4 | . 3 4 Penetration Max . | . . . Secondary Targets . | . . . Shots Hit Robots 32 | . 21 11 Core Hits 24 | . 16 8 Critical Kills . | . . . Critical Parts Destroyed . | . . . Critical Strikes . | . . . Melee Attacks . | . . . Impact . | . . . Slashing . | . . . Piercing . | . . . Sneak Attacks . | . . . Combat Hostiles . | . . . Follow-up Attacks . | . . . Damage Inflicted 422 | . 235 187 Guns 283 | . 167 116 Cannons 139 | . 68 71 Explosions . | . . . Melee . | . . . Ramming . | . . . Kinetic 283 | . 167 116 Thermal 139 | . 68 71 Explosive . | . . . Electromagnetic . | . . . Impact . | . . . Slashing . | . . . Piercing . | . . . Highest Corruption 3 | . . 3 Average Corruption 1 | . . 1 Corruption Purged . | . . . Corruption Blocked . | . . . Effects 4 | . . 4 Message Errors 1 | . . 1 Matter Fused 2 | . . 2 Heat Flow Errors 1 | . . 1 Overload Shots . | . . . Overflow Damage 6 | . . 6 Projectiles 6 | . . 6 Explosions . | . . . Melee . | . . . Knockbacks . | . . . Impact . | . . . Kinetic . | . . . Secondary . | . . . Self-Inflicted Damage . | . . . Shots . | . . . Rammed . | . . . Targets Rammed . | . . . Kicked . | . . . Crushed . | . . . Highest Temperature 250 | . 118 250 Average Temperature 42 | . 28 52 Received Heat Transfer 513 | . 18 495 Siege Activations . | . . . Martial Activations . | . . . Shielding Activations . | . . . Robots Disrupted . | . . . Combat Hostiles . | . . . Robots Corrupted . | . . . Combat Hostiles . | . . . Parts Fried . | . . . Impact Corruptions . | . . . Robots Melted . | . . . Combat Hostiles . | . . . Parts Melted . | . . . Heat Transferred 296 | . 148 148 Parts Sabotaged . | . . . Parts Stolen . | . . . Parts Stripped . | . . . Power Chain Reactions . | . . . Alert | -11 -10 -9 ------- Run | Yrd Mat Mat Maximum Alert Level . | . . . Low Security (%) 100 | 100 100 100 Level 1 . | . . . Level 2 . | . . . Level 3 . | . . . Level 4 . | . . . Level 5 . | . . . High Security . | . . . Max Security . | . . . Peak Influence 62 | . 62 40 Initial . | . . . Average 9 | . 11 6 Influence Increases 286 | . 195 91 Destroy 0b10 Robot/C 240 | . 160 80 Destroy 0b10 Robot/NC 5 | . 5 . Destroy Leader 40 | . 30 10 Destroy Structure 1 | . . 1 Influence Decreases 286 | . 194 92 Entered New Map 1 | . . 1 Time Decay 265 | . 174 91 Lost Part 20 | . 20 . Squads Dispatched 1 | . . 1 Investigation . | . . . Extermination . | . . . Reinforcement 1 | . . 1 Assault . | . . . Garrison . | . . . Intercept . | . . . Searches Triggered . | . . . Construction Impeded . | . . . Haulers Reinforced . | . . . Active Scanning Responses . | . . . Cargo Convoy Interrupts . | . . . Stealth | -11 -10 -9 --------- Run | Yrd Mat Mat Distress Signals 1 | . . 1 Communications Jammed . | . . . Distress Signals . | . . . Times Spotted 16 | . 8 8 Peak Tracking Total 3 | . 3 2 Tactical Retreats . | . . . Traps | -11 -10 -9 ------- Run | Yrd Mat Mat Traps Triggered 2 | . . 2 Indirectly . | . . . Trap Hack Attempts . | . . . Triggered . | . . . Disarmed . | . . . Reprogrammed . | . . . Reused . | . . . Traps Extracted . | . . . Installed . | . . . Triggered . | . . . Machines | -11 -10 -9 ---------- Run | Yrd Mat Mat Machines Disabled . | . . . Max in Single Turn . | . . . Machines Repaired . | . . . Machines Dismantled . | . . . Machines Sabotaged . | . . . Overloaded Fab Kills . | . . . Hacking | -11 -10 -9 --------- Run | Yrd Mat Mat Machines Accessed 4 | . 3 1 Terminals 2 | . 2 . Fabricators . | . . . Repair Stations . | . . . Recycling Units 1 | . 1 . Scanalyzers 1 | . . 1 Garrison Access . | . . . Total Hacks 4 | . 3 1 Successful 2 | . 1 1 Failed 2 | . 2 . Catastrophic . | . . . Database Lockouts . | . . . Manual . | . . . Terminals 2 | . 2 . Fabricators . | . . . Repair Stations . | . . . Recycling Units 1 | . 1 . Scanalyzers 1 | . . 1 Garrison Access . | . . . Terminal Hacks . | . . . Fabricator Hacks . | . . . Repair Station Hacks . | . . . Recycling Unit Hacks 1 | . 1 . Report Inventory 1 | . 1 . Scanalyzer 1 | . . 1 Retrieve Study 1 | . . 1 Garrison Access Hacks . | . . . Unauthorized Hacks . | . . . Terminals . | . . . Fabricators . | . . . Repair Stations . | . . . Recycling Units . | . . . Scanalyzers . | . . . Garrison Access . | . . . Data Cores Recovered . | . . . Used . | . . . Hacking Detections 1 | . . 1 Full Trace Events . | . . . Feedback Events . | . . . Feedback Blocked . | . . . Robot Schematics Acquired . | . . . Robots Built . | . . . Authchips . | . . . Time . | . . . Total Robot Build Rating . | . . . Part Schematics Acquired . | . . . Parts Built . | . . . Authchips . | . . . Time . | . . . Total Part Build Rating . | . . . Part Studies Acquired 1 | . . 1 Parts Repaired . | . . . Time . | . . . Parts Recycled . | . . . Recycled Matter . | . . . Retrieved Matter . | . . . Retrieved Components . | . . . Parts Scanalyzed . | . . . Part Schematics Acquired . | . . . Parts Damaged . | . . . Bothacking | -11 -10 -9 ------------ Run | Yrd Mat Mat Used RIF Installer . | . . . Robots Hacked . | . . . Non-combat . | . . . Combat . | . . . Robot Hacks Applied . | . . . Relay Couplers Released . | . . . Fabnet Peak Effective % . | . . . Robots Rewired . | . . . Allies Hacked . | . . . Hacks Repelled . | . . . Allies | -11 -10 -9 -------- Run | Yrd Mat Mat Total Allies . | . . . Largest Group . | . . . Highest-Rated Group . | . . . Highest-Rated Ally . | . . . Total Orders . | . . . Ally Attacks . | . . . Total Damage . | . . . Kills . | . . . Allies Corrupted . | . . . Allies Melted . | . . . Intel | -11 -10 -9 ------- Run | Yrd Mat Mat Active Infowar (turns) . | . . . Robot Analysis Total . | . . . Derelict Logs Recovered . | . . . Drone Launches . | . . . Drone Recoveries . | . . . Exploration | -11 -10 -9 ------------- Run | Yrd Mat Mat Turns Passed 1700 | 59 1061 580 Spaces Moved 612 | 50 451 111 Core 22 | 20 . 2 Treads . | . . . Legs 562 | 30 451 81 Wheels . | . . . Hover . | . . . Flight 28 | . . 28 Fastest Speed 50 | 50 120 175 Average Speed 139 | 102 120 233 Slowest Speed 360 | 200 120 360 Overloaded Moves . | . . . Propulsion Burnouts . | . . . Robots Hopped . | . . . Potential Cave-ins . | . . . Cave-ins Triggered . | . . . Exploration Rate (%) 28 | 3 72 10 Regions Visited 2 Branch Regions . Pre-discovered Areas . | . . . Known Exits Taken . | . . . Unknown Exits Taken 2 | 1 1 . Scrap Searched . | . . . Spaces Dug . | . . . Terrain Destroyed 1 | . . 1 Melee . | . . . Projectile 1 | . . 1 AOE . | . . . Terrain Rammed . | . . . Walls Destroyed . | . . . Machines Disabled . | . . . Actions | -11 -10 -9 --------- Run | Yrd Mat Mat Total 1397 | 55 931 411 Wait 683 | 1 417 265 Move 610 | 49 450 111 Hop . | . . . Pick Up 18 | . 12 6 Fast Attach 5 | 5 . . Attach 14 | . 4 10 Detach 1 | . . 1 Swap 3 | . 3 . Drop 5 | . 2 3 Fire 58 | . 43 15 Melee . | . . . Ram . | . . . Kick . | . . . Crush . | . . . Escape Stasis . | . . . Rewire . | . . . Trap . | . . . Miscellaneous . | . . . Route ------- -11/Scrapyard -10/Materials -9/Materials History --------- Turn | Location | Event 28 | -11/Scrapyard | Discovered new exit (range 14) 60 | -11/Scrapyard | Entered Materials 308 | -10/Materials | Build established: Mutant 944 | -10/Materials | Discovered new exit (range 16) 1121 | -10/Materials | Entered another Materials area 1121 | -9/Materials | Evolved 2 slots: Utility x2 1510 | -9/Materials | Lost 3 parts (1n2u) 1566 | -9/Materials | Core integrity fell below 50% 1701 | -9/Materials | Self-destructed Last Messages --------------- 01561_ Assault Cannon destroyed. 01565_ Destroyed Heat Sink. 01567_ Beam Cannon destroyed. [Achievement: There's More Where That Came From] 01573_ G-34 Mercenary heat spikes uncontrollably. 01574_ G-34 Mercenary heat short circuits Ion Engine. 01575_ G-34 Mercenary heat damages Aluminum Leg, Sml. Laser. 01575_ G-34 Mercenary overheating. 01575_ G-34 Mercenary destroyed. Flying robots can pass through spaces occupied by others, even hostile robots. 01618_ System corrupted: Matter fused (-5). 01622_ Acquired 28 matter. 01647_ System corrupted: Heat flow error (+278). 01651_ Triggered Shock Trap. 01651_ The floor emits a surge of raw power. 01651_ System corrupted (+2). Map ----- +----------------------------------------------------+ | ????# #??# #????????????? | | ????# #??# #????????????? | | ????# #??# #????????????? | | ????# #??# #????????????? | | ????# #??# #????????????? | | ????# #??# #????????????? | | ????# #??# #????????????? | | ????# #??# #????????????? | | ????# #??# #????????????? | | ???## ##?# #????????????? | | ???# #?# #????????????? | | ???# #?# #????????????? | | ???# ###%[##???????#???? | | ???# ## [ ##### #??? | | ???# [ #??? | | ???# % T " #??? | | ???### #### ##### #??? | | ?????# #??######?????? ##??? | | ?????# #???????????????????? | | ?????# #???????????????????? | | ?????# #???????????????????? | | ?##### #???????????????????? | | ?#== #???????????????????? | | ?#== #???????????????????? | | ?#!! #???????????????????? | | ?#! @ #???????????????????? | | ?#]] #####???????????????? | | ?#] +???????????????? | | ?##### ####???????????????? | | ?????# #??????????????????? | | ????## ############# ????? | | ????# ^ #???? | | ????# #???? | | ????#! % +???? | | ????#]^ ##+#######????? | | ????#]!! # [ !#????? | | ????#!!! # "" #????? | | ????# + """ #????? | | ????# # S" #????? | | ????# ####### #????? | | ????#####?????# """"" #????? | | ??????????????# """"" #????? | | ??????????????# """"" =#????? | | ??????????????# #????? | | ??????????????##########????? | | | | | | | | | | | +----------------------------------------------------+ Best States ------------- Heat Dissipation 38 Energy Generation 10 Energy Capacity 500 Matter Stores 300 Matter Capacity 450 Sight Range 16 Terrain Scan Density 10 Armor Coverage 300 Evasion (%) 55 Item Schematics ----------------- None Robot Schematics ------------------ None Fabricated ------------ Nothing Repaired ---------- Nothing Studied --------- Aluminum Leg | -9/Materials | Hacked Alien Tech Used ----------------- None Achievements -------------- DATA ERROR: Steam Global Achievement% Ghost 'Em Item+ Organ Harvest There's More Where That Came From Challenges ------------ None Game ------ Seed CommBehemothTether Manual? 0 Play Time 00:23:49 Cumulative 3.2 hours Start 2025.12.26 @ 11:17:25 End 2025.12.26 @ 20:57:52 Sessions 1 Manual Loads 0 Difficulty Rogue Special Mode None Game No. 5 Rogue 5 Adventurer 0 Explorer 0 Win Type - Total 0 Types 0/0/0/0/0/0/0/0/0/0 Lore% 2 Gallery% 8 Achievement% 5 Wizard Run 0 Options --------- Layout 1 ASCII 0 Keyboard 0 Movement Mouse Keybinds 0 Fullscreen 1 Font 16/SmallcapsGlow Map View 50x40 Zoom Use 0% Tactical HUD 1 Map Filters NONE Filters NONE Steam SD RUN: 9830c9fd-ba26-423e-b37c-a9c302a76517